{"text_format":"1","workbook":"xlsx","n_sheets":2,"sheets":["ورقة1","ورقة2"],"not_rendered":{"charts":0,"images":0,"macros":1,"external_links":0,"defined_names":1,"comments":0,"pivot_tables":0},"unopened":[],"bounds":{"document_bytes":16777216,"sheet_cells":100000,"rows_first":2000,"rows_last":500,"rows_between":2000,"halvings":0,"cell_chars":16384,"cell_head_chars":4096},"cells_cut":0,"cells_raw":0,"read":"whole","date_system":"1900"}

{"sheet":"ورقة1","index":0,"n_rows":20,"n_cols":11,"rows_kept":20,"cut":false,"hidden":false,"merged":[[0,6,4,6],[9,10,18,11]]}
[null,null,null,null,null,null,"ا رجو اكمال هذا الكود"]
[null,null,null,"غير محدودة الاسطر"]
[]
[null,1,1,2]
[null,2,2,4]
[null,3,3,6]
[null,4,4,8,null,null,{"$f":"SUM(B4,C4)","v":2},null,null,{"$f":"SUM(B4,C4)","v":2}]
[null,5,5,10,null,null,4,null,null,4]
[null,6,6,12,null,null,6,null,null,6]
[null,7,7,14,null,null,8,null,null,8,"هنا الكود يعمل تمام"]
[null,8,8,16,null,null,10,null,null,10]
[null,9,9,18,null,null,12,null,null,12]
[null,10,10,20,null,null,14,null,null,14]
[null,11,11,22,null,null,16,null,null,16]
[null,12,12,24,null,null,18,null,null,18]
[null,13,13,26,null,null,20,null,null,20]
[null,null,null,null,null,null,22,null,null,22]
[null,null,null,null,null,null,24,null,null,24]
[null,null,null,null,null,null,26,null,null,26]
[null,null,null,null,null,null,0,null,null,0]

{"sheet":"ورقة2","index":1,"n_rows":31,"n_cols":19,"rows_kept":31,"cut":false,"hidden":false,"merged":[[30,11,30,12],[28,13,28,17],[30,13,30,17],[3,2,3,9],[3,11,3,18],[27,11,27,12],[28,11,28,12]]}
[]
[]
[]
[null,null,"جدول مرتبات لغرض التدريب على الجمع والطرح بالكود",null,null,null,null,null,null,null,null,"جدول مرتبات لغرض التدريب على الجمع والطرح بالكود"]
[null,null,null,null,"إخفاء جميع المعادلات في مودول .. لضمان عدم حذف أي معادلة ... وبعد الانتهاء من تنزيل المرتبات والحوافز",null,null,null,null,null,null,null,null,"وهذا بشكل فوري والمعادلات موجودة على الشيت"]
[null,null,null,null,"والخصم .. يتم الضغط على ايقونة الاحتساب فيتم الاحتساب بشكل سريع",null,null,null,null,null,null,null,null,"يوجد تنسيق شرطي في الجدول : اذا المرتب الإجمالي صفر او اقل لا يتم وضع الخصم "]
[null,null,"ر.م","الاسم","مرتب ","حوافز ","الإجمالي","خصم","صافي المرتب","ملاحظات",null,"ر.م","الاسم","مرتب ","حوافز ","الإجمالي","خصم","صافي المرتب","ملاحظات"]
[null,null,1,"الاسم 1",1250.252,20,1270.252,10,1260.252,null,null,1,"الاسم 1",1250.252,20,{"$f":"+N8+O8","v":1270.252},10,{"$f":"+P8-Q8","v":1260.252}]
[null,null,2,"الاسم 2",4520,null,4520,null,4520,null,null,2,"الاسم 2",4520,null,{"$f":"+N9+O9","v":4520},null,{"$f":"+P9-Q9","v":4520}]
[null,null,3,"الاسم 3",2500,20,2520,null,2520,null,null,3,"الاسم 3",2500,20,2520,null,2520]
[null,null,4,"الاسم 4",2500,20,2520,null,2520,null,null,4,"الاسم 4",2500,20,2520,10,2510]
[null,null,5,"الاسم 5",120,20,140,null,140,null,null,5,"الاسم 5",120,20,140,10,130]
[null,null,6,"الاسم 6",1200,20,1220,null,1220,null,null,6,"الاسم 6",1200,20,1220,10,1210]
[null,null,7,"الاسم 7",1400,2,1402,null,1402,null,null,7,"الاسم 7",1400,2,1402,10,1392]
[null,null,8,"الاسم 8",null,null,0,null,0,null,null,8,"الاسم 8",null,null,0,10,-10]
[null,null,9,"الاسم 9",null,null,0,null,0,null,null,9,"الاسم 9",null,null,0,null,0]
[null,null,10,"الاسم 10",null,null,0,null,0,null,null,10,"الاسم 10",null,null,0,null,0]
[null,null,11,"الاسم 11",null,null,0,null,0,null,null,11,"الاسم 11",null,null,0,10,-10]
[null,null,12,"الاسم 12",null,null,0,null,0,null,null,12,"الاسم 12",null,null,0,null,0]
[null,null,13,"الاسم 13",null,null,0,null,0,null,null,13,"الاسم 13",null,null,0,null,0]
[null,null,14,"الاسم 14",null,null,0,null,0,null,null,14,"الاسم 14",null,null,0,null,0]
[null,null,15,"الاسم 15",null,null,0,null,0,null,null,15,"الاسم 15",null,null,0,null,0]
[null,null,16,"الاسم 16",null,null,0,null,0,null,null,16,"الاسم 16",null,null,0,null,0]
[null,null,17,"الاسم 17",null,null,0,null,0,null,null,17,"الاسم 17",null,null,0,null,0]
[null,null,18,"الاسم 18",null,null,0,null,0,null,null,18,"الاسم 18",null,null,0,null,0]
[null,null,19,"الاسم 19",null,null,0,null,0,null,null,19,"الاسم 19",null,null,0,null,0]
[null,null,20,"الاسم 20",null,null,0,null,0,null,null,20,"الاسم 20",null,null,0,null,0]
[null,null,null,"الإجمالي",13490.252,102,13592.252,10,13582.252,null,null,"الإجمالي",null,{"$f":"SUM(N8:N27)","v":13490.252},{"$f":"SUM(O8:O27)","v":102},13592.252,70,13522.252]
[null,null,null,"الإجمالي بالحروف فقط : ثلاثة عشر ألف وخمسمائة وإثنان وتسعون دينار  و 252 درهم  لاغير",null,null,null,null,null,null,null,"اجمالي المرتب بالحروف",null,{"$f":"\"فقط : \" & horof(P28)&  \"لاغير\"","v":"فقط : ثلاثة عشر ألف وخمسمائة وإثنان وتسعون دينار  و 252 درهم لاغير"}]
[]
[null,null,null,"الصافي بالحروف فقط : ثلاثة عشر ألف وخمسمائة وإثنان وثمانون دينار  و 252 درهم  لاغير",null,null,null,null,null,null,null,"صافي المرتب بالحروف",null,{"$f":"\"فقط : \" & horof(R28)&  \"لاغير\"","v":"فقط : ثلاثة عشر ألف وخمسمائة وإثنان وعشرون دينار  و 252 درهم لاغير"}]